[Event "*** Titled Tuesday Blitz"]
[Site "Chess.com"]
[Date "2021.04.27"]
[Round "9"]
[White "TeukkaSalama"]
[Black "enriquetejedor"]
[Result "1-0"]
[WhiteElo "2405"]
[BlackElo "2590"]
[TimeControl "180+1"]
[EndTime "11:43:55 PDT"]
[Termination "TeukkaSalama won by checkmate"]

1. d4 {[%clk 0:03:00.9]} 1... c5 {[%clk 0:02:00.6]} 2. c3 {[%clk 0:02:59.5]}
2... cxd4 {[%clk 0:02:00.5]} 3. cxd4 {[%clk 0:03:00.4]} 3... Nf6 {[%clk
0:02:00.9]} 4. Nc3 {[%clk 0:03:00.3]} 4... d6 {[%clk 0:02:00.2]} 5. Bf4 {[%clk
0:02:58]} 5... g6 {[%clk 0:01:58.7]} 6. Nf3 {[%clk 0:02:57.8]} 6... Bg7 {[%clk
0:01:58.3]} 7. h3 {[%clk 0:02:58.3]} 7... O-O {[%clk 0:01:58.2]} 8. e3 {[%clk
0:02:58.7]} 8... b6 {[%clk 0:01:53]} 9. Be2 {[%clk 0:02:58]} 9... Bb7 {[%clk
0:01:50.9]} 10. O-O {[%clk 0:02:58.2]} 10... Nc6 {[%clk 0:01:42.4]} 11. a3
{[%clk 0:02:56.6]} 11... Rc8 {[%clk 0:01:36.5]} 12. Qa4 {[%clk 0:02:51.3]} 12...
a6 {[%clk 0:01:33.8]} 13. Rfc1 {[%clk 0:02:44.8]} 13... b5 {[%clk 0:01:30.2]}
14. Qd1 {[%clk 0:02:44.8]} 14... Qb6 {[%clk 0:01:12.4]} 15. b4 {[%clk 0:02:40]}
15... Rfd8 {[%clk 0:01:03.7]} 16. Qb3 {[%clk 0:02:38.9]} 16... Nh5 {[%clk
0:00:52.2]} 17. Bh2 {[%clk 0:02:35.1]} 17... e5 {[%clk 0:00:51.9]} 18. Ng5
{[%clk 0:02:29.3]} 18... Rd7 {[%clk 0:00:44.6]} 19. Bg4 {[%clk 0:02:24]} 19...
Qd8 {[%clk 0:00:25.5]} 20. Bxd7 {[%clk 0:02:22.9]} 20... Qxd7 {[%clk 0:00:26.4]}
21. Nd5 {[%clk 0:02:17.1]} 21... exd4 {[%clk 0:00:21.5]} 22. Nb6 {[%clk
0:02:16.9]} 22... Qf5 {[%clk 0:00:20.6]} 23. Qxf7+ {[%clk 0:01:58.1]} 23... Qxf7
{[%clk 0:00:19.3]} 24. Nxf7 {[%clk 0:01:59]} 24... dxe3 {[%clk 0:00:10.1]} 25.
Nxd6 {[%clk 0:01:59.2]} 25... exf2+ {[%clk 0:00:09.4]} 26. Kxf2 {[%clk
0:01:57.7]} 26... Bd4+ {[%clk 0:00:05.1]} 27. Ke1 {[%clk 0:01:51.7]} 27... Bxb6
{[%clk 0:00:02.2]} 28. Nxc8 {[%clk 0:01:51.8]} 28... Nd4 {[%clk 0:00:01.9]} 29.
Nxb6 {[%clk 0:01:50.2]} 29... Bxg2 {[%clk 0:00:01.7]} 30. Kf2 {[%clk 0:01:38.8]}
30... Bxh3 {[%clk 0:00:02.1]} 31. Rc7 {[%clk 0:01:34.3]} 31... Ne6 {[%clk
0:00:01.7]} 32. Ra7 {[%clk 0:01:32.7]} 32... Nf6 {[%clk 0:00:01.9]} 33. Re1
{[%clk 0:01:29.3]} 33... Bf5 {[%clk 0:00:01.8]} 34. Nd7 {[%clk 0:01:27.2]} 34...
Ng4+ {[%clk 0:00:02.2]} 35. Kg1 {[%clk 0:01:27.5]} 35... Nd4 {[%clk 0:00:02.3]}
36. Ne5 {[%clk 0:01:17.9]} 36... Nxe5 {[%clk 0:00:02.2]} 37. Bxe5 {[%clk
0:01:17.4]} 37... Nf3+ {[%clk 0:00:02.4]} 38. Kf2 {[%clk 0:01:18.1]} 38... Nxe1
{[%clk 0:00:02.1]} 39. Kxe1 {[%clk 0:01:19]} 39... h5 {[%clk 0:00:01.6]} 40. Kf2
{[%clk 0:01:19.2]} 40... h4 {[%clk 0:00:01.8]} 41. Rxa6 {[%clk 0:01:15.9]} 41...
h3 {[%clk 0:00:01.5]} 42. Kg3 {[%clk 0:01:16.1]} 42... Kf8 {[%clk 0:00:01.6]}
43. Ra7 {[%clk 0:01:15.7]} 43... Ke8 {[%clk 0:00:01.8]} 44. Kh4 {[%clk
0:01:15.3]} 44... Kd8 {[%clk 0:00:01.5]} 45. Kg5 {[%clk 0:01:15.5]} 45... Ke8
{[%clk 0:00:01.6]} 46. Kf6 {[%clk 0:01:15.7]} 46... Kd8 {[%clk 0:00:01.8]} 47.
Bg3 {[%clk 0:01:15.6]} 47... Be4 {[%clk 0:00:01.9]} 48. Ke5 {[%clk 0:01:14.2]}
48... Bc2 {[%clk 0:00:01.8]} 49. Kd6 {[%clk 0:01:14.2]} 49... Ke8 {[%clk
0:00:02.2]} 50. Kc5 {[%clk 0:01:14]} 50... Bd3 {[%clk 0:00:02.3]} 51. a4 {[%clk
0:01:13.2]} 51... bxa4 {[%clk 0:00:02.4]} 52. Rxa4 {[%clk 0:01:13.8]} 52... Kf7
{[%clk 0:00:03]} 53. Ra7+ {[%clk 0:01:13]} 53... Ke6 {[%clk 0:00:02.9]} 54. b5
{[%clk 0:01:13.1]} 54... Kf5 {[%clk 0:00:02.9]} 55. b6 {[%clk 0:01:13.4]} 55...
Be4 {[%clk 0:00:03.3]} 56. b7 {[%clk 0:01:13.1]} 56... Bxb7 {[%clk 0:00:02.6]}
57. Rxb7 {[%clk 0:01:14]} 57... Kg4 {[%clk 0:00:03.5]} 58. Bd6 {[%clk
0:01:13.1]} 58... g5 {[%clk 0:00:03.2]} 59. Rb3 {[%clk 0:01:11.5]} 59... Kh4
{[%clk 0:00:02.8]} 60. Kd4 {[%clk 0:01:10.3]} 60... Kg4 {[%clk 0:00:02.2]} 61.
Ke4 {[%clk 0:01:10]} 61... h2 {[%clk 0:00:02.1]} 62. Bxh2 {[%clk 0:01:09.7]}
62... Kh4 {[%clk 0:00:02.3]} 63. Kf5 {[%clk 0:01:04.6]} 63... g4 {[%clk
0:00:02.5]} 64. Bg3+ {[%clk 0:01:01.7]} 64... Kh5 {[%clk 0:00:02.2]} 65. Rb7
{[%clk 0:00:57.1]} 65... Kh6 {[%clk 0:00:02.2]} 66. Rc7 {[%clk 0:00:56.8]} 66...
Kh5 {[%clk 0:00:02.2]} 67. Rh7# {[%clk 0:00:57.4]} 1-0

[Event "*** Titled Tuesday Blitz"]
[Site "Chess.com"]
[Date "2021.04.27"]
[Round "9"]
[White "BigAl"]
[Black "c_r_e_e_p_e_r"]
[Result "1-0"]
[WhiteElo "2561"]
[BlackElo "2397"]
[TimeControl "180+1"]
[EndTime "11:43:55 PDT"]
[Termination "BigAl won by checkmate"]

1. Nf3 {[%clk 0:03:00.9]} 1... Nf6 {[%clk 0:02:57.9]} 2. g3 {[%clk 0:03:00.9]}
2... e6 {[%clk 0:02:58.5]} 3. Bg2 {[%clk 0:03:01.6]} 3... Be7 {[%clk 0:02:59]}
4. O-O {[%clk 0:03:02.5]} 4... d5 {[%clk 0:02:59.6]} 5. d3 {[%clk 0:03:03.2]}
5... O-O {[%clk 0:03:00.2]} 6. Nbd2 {[%clk 0:03:03.8]} 6... a5 {[%clk
0:02:58.3]} 7. a4 {[%clk 0:02:57.2]} 7... Na6 {[%clk 0:02:52.9]} 8. e4 {[%clk
0:02:54.9]} 8... dxe4 {[%clk 0:02:50.1]} 9. dxe4 {[%clk 0:02:54.6]} 9... Nc5
{[%clk 0:02:50.6]} 10. e5 {[%clk 0:02:52.1]} 10... Nd5 {[%clk 0:02:49.5]} 11.
Nc4 {[%clk 0:02:39.8]} 11... Bd7 {[%clk 0:02:47.5]} 12. b3 {[%clk 0:02:31.2]}
12... b5 {[%clk 0:02:33.7]} 13. axb5 {[%clk 0:02:29.7]} 13... Bxb5 {[%clk
0:02:34.6]} 14. Nd4 {[%clk 0:02:16.8]} 14... Bxc4 {[%clk 0:02:26.6]} 15. Nc6
{[%clk 0:02:13.8]} 15... Qe8 {[%clk 0:02:08]} 16. bxc4 {[%clk 0:02:12.4]} 16...
Qxc6 {[%clk 0:01:41.6]} 17. cxd5 {[%clk 0:02:12.1]} 17... exd5 {[%clk
0:01:15.6]} 18. Bxd5 {[%clk 0:02:11.8]} 18... Qb5 {[%clk 0:01:12.8]} 19. Bxa8
{[%clk 0:02:10.9]} 19... Rxa8 {[%clk 0:01:13.1]} 20. Ba3 {[%clk 0:02:01.8]}
20... Bf8 {[%clk 0:01:03.7]} 21. Qf3 {[%clk 0:01:36.2]} 21... Ra7 {[%clk
0:00:58.1]} 22. Rab1 {[%clk 0:01:26.7]} 22... Qc4 {[%clk 0:00:56]} 23. Rb8
{[%clk 0:01:26.5]} 23... Ra6 {[%clk 0:00:45.7]} 24. Rd1 {[%clk 0:00:52.3]} 24...
Rb6 {[%clk 0:00:26.5]} 25. Rdd8 {[%clk 0:00:49.3]} 25... Rxb8 {[%clk 0:00:23.2]}
26. Rxb8 {[%clk 0:00:49.4]} 26... Ne6 {[%clk 0:00:19]} 27. Be7 {[%clk
0:00:32.3]} 27... Qa6 {[%clk 0:00:07.1]} 28. Qa3 {[%clk 0:00:29.7]} 28... c5
{[%clk 0:00:05.9]} 29. Bxf8 {[%clk 0:00:27.5]} 29... h6 {[%clk 0:00:03.1]} 30.
Bxc5+ {[%clk 0:00:24.2]} 30... Kh7 {[%clk 0:00:02.7]} 31. Be3 {[%clk 0:00:22.8]}
31... Qc4 {[%clk 0:00:02.9]} 32. Qd3+ {[%clk 0:00:22.4]} 32... Qxd3 {[%clk
0:00:03.6]} 33. cxd3 {[%clk 0:00:23.1]} 33... a4 {[%clk 0:00:03.8]} 34. Ra8
{[%clk 0:00:23.5]} 34... g6 {[%clk 0:00:03.7]} 35. Rxa4 {[%clk 0:00:23.1]} 35...
Ng7 {[%clk 0:00:04.3]} 36. g4 {[%clk 0:00:22.9]} 36... h5 {[%clk 0:00:04.3]} 37.
d4 {[%clk 0:00:23.8]} 37... hxg4 {[%clk 0:00:04.6]} 38. d5 {[%clk 0:00:24.5]}
38... Nf5 {[%clk 0:00:05]} 39. d6 {[%clk 0:00:25]} 39... g3 {[%clk 0:00:05.2]}
40. hxg3 {[%clk 0:00:24.3]} 40... g5 {[%clk 0:00:05.1]} 41. Bxg5 {[%clk
0:00:23]} 41... Kg6 {[%clk 0:00:05.3]} 42. Bf4 {[%clk 0:00:23.9]} 42... Kh5
{[%clk 0:00:05.8]} 43. d7 {[%clk 0:00:23.8]} 43... Ne7 {[%clk 0:00:05.8]} 44.
d8=Q {[%clk 0:00:23.8]} 44... Kg4 {[%clk 0:00:06.1]} 45. Qxe7 {[%clk 0:00:23.8]}
45... Kf3 {[%clk 0:00:06.6]} 46. Qa3+ {[%clk 0:00:22]} 46... Kg4 {[%clk
0:00:06.5]} 47. Bc1+ {[%clk 0:00:21.4]} 47... Kh5 {[%clk 0:00:05.5]} 48. Qf3+
{[%clk 0:00:20.4]} 48... Kg6 {[%clk 0:00:05.4]} 49. Ra6+ {[%clk 0:00:19.2]}
49... Kh7 {[%clk 0:00:05.6]} 50. Qh5+ {[%clk 0:00:19.3]} 50... Kg8 {[%clk
0:00:06]} 51. Ra8+ {[%clk 0:00:18.5]} 51... Kg7 {[%clk 0:00:06.5]} 52. f3 {[%clk
0:00:14.4]} 52... f6 {[%clk 0:00:04.7]} 53. Ra7+ {[%clk 0:00:14.4]} 53... Kf8
{[%clk 0:00:04.4]} 54. Qh8# {[%clk 0:00:14.4]} 1-0

[Event "*** Titled Tuesday Blitz"]
[Site "Chess.com"]
[Date "2021.04.27"]
[Round "9"]
[White "shaheus"]
[Black "A-S-00"]
[Result "0-1"]
[WhiteElo "2167"]
[BlackElo "2327"]
[TimeControl "180+1"]
[EndTime "11:43:56 PDT"]
[Termination "A-S-00 won by resignation"]

1. e4 {[%clk 0:03:00.9]} 1... e6 {[%clk 0:02:47.9]} 2. Nf3 {[%clk 0:03:00.1]}
2... d5 {[%clk 0:02:39.4]} 3. Nc3 {[%clk 0:02:59.9]} 3... c5 {[%clk 0:02:32]} 4.
Qe2 {[%clk 0:02:53.2]} 4... d4 {[%clk 0:02:25.4]} 5. Nb1 {[%clk 0:02:53.1]} 5...
Nc6 {[%clk 0:02:18.9]} 6. d3 {[%clk 0:02:50.1]} 6... e5 {[%clk 0:02:01.6]} 7. g3
{[%clk 0:02:49.2]} 7... Be7 {[%clk 0:01:56.8]} 8. Bg2 {[%clk 0:02:49.3]} 8...
Nf6 {[%clk 0:01:55.9]} 9. O-O {[%clk 0:02:49.1]} 9... O-O {[%clk 0:01:55.5]} 10.
h3 {[%clk 0:02:48.7]} 10... Ne8 {[%clk 0:01:51.3]} 11. Ne1 {[%clk 0:02:45.7]}
11... f5 {[%clk 0:01:44.8]} 12. exf5 {[%clk 0:02:42.8]} 12... Bxf5 {[%clk
0:01:42.4]} 13. Nd2 {[%clk 0:02:42.6]} 13... Qd7 {[%clk 0:01:38.4]} 14. Kh2
{[%clk 0:02:42.1]} 14... Nd6 {[%clk 0:01:29.8]} 15. Nef3 {[%clk 0:02:37.6]}
15... Rae8 {[%clk 0:01:24.3]} 16. b3 {[%clk 0:02:12.8]} 16... Bf6 {[%clk
0:01:18.1]} 17. Ne4 {[%clk 0:02:07.4]} 17... Nxe4 {[%clk 0:01:14.8]} 18. dxe4
{[%clk 0:02:07.7]} 18... Bg6 {[%clk 0:01:15.6]} 19. Qc4+ {[%clk 0:01:40.4]}
19... Kh8 {[%clk 0:01:09.1]} 20. Qxc5 {[%clk 0:01:40.4]} 20... Bxe4 {[%clk
0:01:05.6]} 21. Ng5 {[%clk 0:01:16.6]} 21... Bxg2 {[%clk 0:00:52.7]} 22. Kxg2
{[%clk 0:01:16.7]} 22... Bxg5 {[%clk 0:00:48.8]} 23. Bxg5 {[%clk 0:01:16]} 23...
e4 {[%clk 0:00:48.7]} 24. Bd2 {[%clk 0:01:06.6]} 24... Rf5 {[%clk 0:00:37.3]}
25. Qc4 {[%clk 0:01:01.8]} 25... Ne5 {[%clk 0:00:26.1]} 26. Qe2 {[%clk
0:01:01.6]} 26... Nf3 {[%clk 0:00:25.5]} 27. Bb4 {[%clk 0:00:51.4]} 27... a5
{[%clk 0:00:24.8]} 28. Ba3 {[%clk 0:00:50.6]} 28... Qd5 {[%clk 0:00:24.7]} 29.
Rad1 {[%clk 0:00:48.1]} 29... Rh5 {[%clk 0:00:23.5]} 30. g4 {[%clk 0:00:36.5]}
30... Qg5 {[%clk 0:00:21.3]} 31. Bd6 {[%clk 0:00:31.7]} 31... Rxh3 {[%clk
0:00:18.2]} 32. Kxh3 {[%clk 0:00:29]} 32... Qh4+ {[%clk 0:00:18.3]} 33. Kg2
{[%clk 0:00:28.9]} 33... Qxg4+ {[%clk 0:00:18.1]} 34. Bg3 {[%clk 0:00:24.3]}
34... Nh4+ {[%clk 0:00:17.2]} 35. Kh2 {[%clk 0:00:22.5]} 35... Qxe2 {[%clk
0:00:17.7]} 36. Bxh4 {[%clk 0:00:20.5]} 36... Qh5 {[%clk 0:00:17.8]} 37. Kh3
{[%clk 0:00:19.5]} 37... Qf5+ {[%clk 0:00:14.4]} 38. Kg2 {[%clk 0:00:18.3]}
38... Qf3+ {[%clk 0:00:13.5]} 39. Kh2 {[%clk 0:00:18.3]} 39... d3 {[%clk
0:00:13.5]} 40. cxd3 {[%clk 0:00:17.8]} 40... exd3 {[%clk 0:00:13.5]} 41. Bg3
{[%clk 0:00:17.9]} 41... Re6 {[%clk 0:00:12.2]} 42. Kg1 {[%clk 0:00:14]} 42...
Rh6 {[%clk 0:00:12.3]} 43. Bh2 {[%clk 0:00:13.8]} 43... Qh3 {[%clk 0:00:10.1]}
0-1

[Event "*** Titled Tuesday Blitz"]
[Site "Chess.com"]
[Date "2021.04.27"]
[Round "9"]
[White "ErikBlomqvist"]
[Black "Valeron87"]
[Result "0-1"]
[WhiteElo "2562"]
[BlackElo "2428"]
[TimeControl "180+1"]
[EndTime "11:43:59 PDT"]
[Termination "Valeron87 won on time"]

1. e4 {[%clk 0:03:00.9]} 1... c5 {[%clk 0:02:58.7]} 2. Nf3 {[%clk 0:03:00.2]}
2... Nc6 {[%clk 0:02:58.9]} 3. Nc3 {[%clk 0:02:54.7]} 3... Nf6 {[%clk
0:02:57.8]} 4. Bb5 {[%clk 0:02:53.7]} 4... Qc7 {[%clk 0:02:56.7]} 5. O-O {[%clk
0:02:53.3]} 5... Nd4 {[%clk 0:02:55.8]} 6. Re1 {[%clk 0:02:42.1]} 6... a6 {[%clk
0:02:52.6]} 7. Bf1 {[%clk 0:02:40.2]} 7... Ng4 {[%clk 0:02:47.6]} 8. g3 {[%clk
0:02:38.5]} 8... Nxf3+ {[%clk 0:02:46.9]} 9. Qxf3 {[%clk 0:02:38.7]} 9... Ne5
{[%clk 0:02:47]} 10. Qe2 {[%clk 0:02:38.8]} 10... e6 {[%clk 0:02:46.8]} 11. d3
{[%clk 0:02:37.8]} 11... Be7 {[%clk 0:02:45.2]} 12. Bg2 {[%clk 0:02:33.4]} 12...
O-O {[%clk 0:02:39]} 13. f4 {[%clk 0:02:22.8]} 13... Nc6 {[%clk 0:02:38.8]} 14.
Be3 {[%clk 0:02:20.8]} 14... b5 {[%clk 0:02:35.1]} 15. e5 {[%clk 0:02:12.4]}
15... Bb7 {[%clk 0:02:32.2]} 16. Ne4 {[%clk 0:02:11.3]} 16... Nd4 {[%clk
0:02:15.6]} 17. Qf2 {[%clk 0:02:11.6]} 17... Rac8 {[%clk 0:01:23.9]} 18. g4
{[%clk 0:01:57.3]} 18... Bxe4 {[%clk 0:00:46.4]} 19. Bxe4 {[%clk 0:01:43.1]}
19... d6 {[%clk 0:00:35.8]} 20. exd6 {[%clk 0:01:25.5]} 20... Bxd6 {[%clk
0:00:36]} 21. c3 {[%clk 0:01:15]} 21... f5 {[%clk 0:00:24.3]} 22. Bg2 {[%clk
0:01:11.5]} 22... Nc6 {[%clk 0:00:24.1]} 23. Bxc5 {[%clk 0:01:00.8]} 23... Bxc5
{[%clk 0:00:20.2]} 24. Qxc5 {[%clk 0:01:00.7]} 24... fxg4 {[%clk 0:00:17.9]} 25.
Rxe6 {[%clk 0:00:58.5]} 25... Nb8 {[%clk 0:00:12.9]} 26. Qxc7 {[%clk 0:00:47.6]}
26... Rxc7 {[%clk 0:00:13.8]} 27. Rae1 {[%clk 0:00:45.6]} 27... Rcf7 {[%clk
0:00:14.2]} 28. Bd5 {[%clk 0:00:41.6]} 28... Kh8 {[%clk 0:00:14.7]} 29. Re8
{[%clk 0:00:40.9]} 29... Rxf4 {[%clk 0:00:14.2]} 30. R1e7 {[%clk 0:00:28.5]}
30... Nd7 {[%clk 0:00:12.4]} 31. Rxf8+ {[%clk 0:00:23.7]} 31... Nxf8 {[%clk
0:00:13]} 32. Kg2 {[%clk 0:00:17.7]} 32... Rf6 {[%clk 0:00:12.9]} 33. d4 {[%clk
0:00:16.2]} 33... h5 {[%clk 0:00:13.2]} 34. Be4 {[%clk 0:00:14.2]} 34... Ne6
{[%clk 0:00:12.3]} 35. Re8+ {[%clk 0:00:12.9]} 35... Nf8 {[%clk 0:00:12.2]} 36.
a4 {[%clk 0:00:11.9]} 36... bxa4 {[%clk 0:00:11]} 37. c4 {[%clk 0:00:10.8]}
37... Kg8 {[%clk 0:00:10.7]} 38. c5 {[%clk 0:00:09.9]} 38... Kf7 {[%clk
0:00:10.3]} 39. Rb8 {[%clk 0:00:08.2]} 39... Rf4 {[%clk 0:00:10.2]} 40. Bd5+
{[%clk 0:00:06.2]} 40... Ke7 {[%clk 0:00:10.4]} 41. Rb7+ {[%clk 0:00:05.6]}
41... Ke8 {[%clk 0:00:10]} 42. Bc6+ {[%clk 0:00:05.4]} 42... Kd8 {[%clk
0:00:09.6]} 43. Rb4 {[%clk 0:00:04.1]} 43... Ne6 {[%clk 0:00:08.5]} 44. Rxa4
{[%clk 0:00:01.7]} 44... Nxd4 {[%clk 0:00:08.1]} 45. Bd5 {[%clk 0:00:01.4]}
45... h4 {[%clk 0:00:05.8]} 46. Rxa6 {[%clk 0:00:01.4]} 46... Nf5 {[%clk
0:00:04.3]} 0-1

[Event "*** Titled Tuesday Blitz"]
[Site "Chess.com"]
[Date "2021.04.27"]
[Round "9"]
[White "DeTimmerman"]
[Black "alexrustemov"]
[Result "1/2-1/2"]
[WhiteElo "2800"]
[BlackElo "2627"]
[TimeControl "180+1"]
[EndTime "11:44:00 PDT"]
[Termination "Game drawn by repetition"]

1. b4 {[%clk 0:03:00.9]} 1... e5 {[%clk 0:02:57.5]} 2. Bb2 {[%clk 0:03:00.2]}
2... Bxb4 {[%clk 0:02:57.2]} 3. Bxe5 {[%clk 0:02:58.3]} 3... Nf6 {[%clk
0:02:57.7]} 4. Nc3 {[%clk 0:02:57.5]} 4... O-O {[%clk 0:02:56.2]} 5. Bxf6 {[%clk
0:02:56.9]} 5... Qxf6 {[%clk 0:02:54.9]} 6. Nd5 {[%clk 0:02:57.8]} 6... Qd6
{[%clk 0:02:49.6]} 7. c4 {[%clk 0:02:55]} 7... b6 {[%clk 0:02:33.2]} 8. Nf3
{[%clk 0:02:51.1]} 8... Bb7 {[%clk 0:02:32.7]} 9. Nxb4 {[%clk 0:02:48.7]} 9...
Qxb4 {[%clk 0:02:33.6]} 10. e3 {[%clk 0:02:49.2]} 10... d5 {[%clk 0:01:58.1]}
11. cxd5 {[%clk 0:02:48.1]} 11... Bxd5 {[%clk 0:01:58.3]} 12. Be2 {[%clk
0:02:48.4]} 12... c5 {[%clk 0:01:53.4]} 13. O-O {[%clk 0:02:44.9]} 13... Nc6
{[%clk 0:01:53]} 14. a3 {[%clk 0:02:32.8]} 14... Qg4 {[%clk 0:01:52]} 15. h3
{[%clk 0:02:27.6]} 15... Qg6 {[%clk 0:01:51.4]} 16. Nh4 {[%clk 0:01:48.8]} 16...
Qf6 {[%clk 0:01:49.6]} 17. Bf3 {[%clk 0:01:45.3]} 17... Rad8 {[%clk 0:01:47.9]}
18. Bxd5 {[%clk 0:01:44.7]} 18... Rxd5 {[%clk 0:01:48.8]} 19. Qf3 {[%clk
0:01:44.8]} 19... Qxf3 {[%clk 0:01:42.9]} 20. Nxf3 {[%clk 0:01:45.7]} 20... Rfd8
{[%clk 0:01:41.7]} 21. Rfb1 {[%clk 0:01:29.2]} 21... f6 {[%clk 0:01:37.5]} 22.
a4 {[%clk 0:01:29.2]} 22... Kf7 {[%clk 0:01:37.4]} 23. Kf1 {[%clk 0:01:24.5]}
23... Ke6 {[%clk 0:01:23.9]} 24. Ke2 {[%clk 0:01:24.6]} 24... Ne5 {[%clk
0:01:23.9]} 25. Ra2 {[%clk 0:01:21.1]} 25... Nc6 {[%clk 0:01:17.1]} 26. Rc2
{[%clk 0:01:15.2]} 26... R8d6 {[%clk 0:01:14.4]} 27. Rbc1 {[%clk 0:01:04.3]}
27... Kd7 {[%clk 0:01:13.7]} 28. Rc4 {[%clk 0:00:58.4]} 28... h5 {[%clk
0:00:56.5]} 29. g4 {[%clk 0:00:48.3]} 29... hxg4 {[%clk 0:00:52.8]} 30. Rxg4
{[%clk 0:00:48.5]} 30... g5 {[%clk 0:00:46]} 31. h4 {[%clk 0:00:48.9]} 31...
gxh4 {[%clk 0:00:40.5]} 32. Rxh4 {[%clk 0:00:49.8]} 32... Ne5 {[%clk 0:00:36.8]}
33. Nxe5+ {[%clk 0:00:48.8]} 33... fxe5 {[%clk 0:00:37.4]} 34. Rc2 {[%clk
0:00:47.7]} 34... Kc6 {[%clk 0:00:37.3]} 35. f4 {[%clk 0:00:42.6]} 35... exf4
{[%clk 0:00:32.8]} 36. Rxf4 {[%clk 0:00:43.5]} 36... a6 {[%clk 0:00:32.8]} 37.
d4 {[%clk 0:00:41.1]} 37... b5 {[%clk 0:00:29.3]} 38. axb5+ {[%clk 0:00:38.4]}
38... axb5 {[%clk 0:00:30.2]} 39. dxc5 {[%clk 0:00:38.8]} 39... Rxc5 {[%clk
0:00:30.8]} 40. Rb2 {[%clk 0:00:38.2]} 40... Rc4 {[%clk 0:00:23.2]} 41. Rxc4+
{[%clk 0:00:33.6]} 41... bxc4 {[%clk 0:00:24.1]} 42. e4 {[%clk 0:00:34.5]} 42...
Kc5 {[%clk 0:00:24.1]} 43. Ke3 {[%clk 0:00:33.4]} 43... c3 {[%clk 0:00:24.1]}
44. Rb8 {[%clk 0:00:32.2]} 44... Kc4 {[%clk 0:00:22.7]} 45. Rc8+ {[%clk
0:00:30.3]} 45... Kb3 {[%clk 0:00:22.8]} 46. e5 {[%clk 0:00:30.9]} 46... Rd1
{[%clk 0:00:22.8]} 47. Ke4 {[%clk 0:00:24.6]} 47... c2 {[%clk 0:00:18.9]} 48. e6
{[%clk 0:00:24.9]} 48... Re1+ {[%clk 0:00:16.4]} 49. Kf5 {[%clk 0:00:24.4]}
49... Rf1+ {[%clk 0:00:14.8]} 50. Ke5 {[%clk 0:00:21.7]} 50... Re1+ {[%clk
0:00:14.8]} 51. Kf6 {[%clk 0:00:21.3]} 51... Rf1+ {[%clk 0:00:14.6]} 52. Ke7
{[%clk 0:00:20.9]} 52... Rf3 {[%clk 0:00:14.3]} 53. Rxc2 {[%clk 0:00:20.3]}
53... Kxc2 {[%clk 0:00:13.5]} 54. Kd7 {[%clk 0:00:21.2]} 54... Rd3+ {[%clk
0:00:13.2]} 55. Kc7 {[%clk 0:00:21.6]} 55... Rc3+ {[%clk 0:00:12.6]} 56. Kd7
{[%clk 0:00:21.9]} 56... Rd3+ {[%clk 0:00:12.4]} 57. Kc7 {[%clk 0:00:22.3]}
57... Rc3+ {[%clk 0:00:12.3]} 58. Kd7 {[%clk 0:00:22.5]} 58... Rd3+ {[%clk
0:00:12.3]} 1/2-1/2

[Event "*** Titled Tuesday Blitz"]
[Site "Chess.com"]
[Date "2021.04.27"]
[Round "9"]
[White "Arystanner"]
[Black "DarkAlekhine"]
[Result "1-0"]
[WhiteElo "2838"]
[BlackElo "2707"]
[TimeControl "180+1"]
[EndTime "11:44:05 PDT"]
[Termination "Arystanner won on time"]

1. e4 {[%clk 0:03:00.9]} 1... Nf6 {[%clk 0:02:57.9]} 2. e5 {[%clk 0:03:00.9]}
2... Nd5 {[%clk 0:02:57.9]} 3. Nc3 {[%clk 0:03:01.8]} 3... Nxc3 {[%clk
0:02:56.7]} 4. dxc3 {[%clk 0:03:02.7]} 4... d6 {[%clk 0:02:57.1]} 5. Nf3 {[%clk
0:03:02.9]} 5... Nc6 {[%clk 0:02:56.7]} 6. Bb5 {[%clk 0:03:02.9]} 6... Bd7
{[%clk 0:02:42.8]} 7. Qe2 {[%clk 0:03:02.8]} 7... Nxe5 {[%clk 0:02:40]} 8. Nxe5
{[%clk 0:03:02.9]} 8... dxe5 {[%clk 0:02:37.8]} 9. Qxe5 {[%clk 0:03:03.5]} 9...
e6 {[%clk 0:02:21.8]} 10. Bg5 {[%clk 0:02:44.2]} 10... f6 {[%clk 0:01:42.9]} 11.
Qxe6+ {[%clk 0:02:39.1]} 11... Be7 {[%clk 0:01:42.9]} 12. Bxd7+ {[%clk
0:02:14.5]} 12... Qxd7 {[%clk 0:01:43.8]} 13. Qxd7+ {[%clk 0:02:15.4]} 13...
Kxd7 {[%clk 0:01:44.2]} 14. O-O-O+ {[%clk 0:02:16.1]} 14... Kc6 {[%clk
0:01:43.1]} 15. Bf4 {[%clk 0:02:06.1]} 15... Bc5 {[%clk 0:01:42.3]} 16. Bg3
{[%clk 0:02:03.2]} 16... a5 {[%clk 0:01:38.7]} 17. Rhe1 {[%clk 0:02:01.7]} 17...
Rhe8 {[%clk 0:01:33.5]} 18. b3 {[%clk 0:02:00.4]} 18... b5 {[%clk 0:01:26.8]}
19. Kb2 {[%clk 0:01:44]} 19... a4 {[%clk 0:01:19]} 20. b4 {[%clk 0:01:34.6]}
20... Bb6 {[%clk 0:01:18.3]} 21. a3 {[%clk 0:01:11.6]} 21... Rac8 {[%clk
0:00:53.4]} 22. f3 {[%clk 0:01:01.3]} 22... h5 {[%clk 0:00:32.1]} 23. c4 {[%clk
0:01:00.3]} 23... bxc4 {[%clk 0:00:31.8]} 24. Kc3 {[%clk 0:01:00.7]} 24... Rxe1
{[%clk 0:00:26.1]} 25. Rxe1 {[%clk 0:00:48.1]} 25... Kb5 {[%clk 0:00:26]} 26.
Re7 {[%clk 0:00:30.7]} 26... g5 {[%clk 0:00:25.8]} 27. Re6 {[%clk 0:00:27.3]}
27... h4 {[%clk 0:00:23.1]} 28. Be1 {[%clk 0:00:25.3]} 28... c5 {[%clk
0:00:23.1]} 29. Kb2 {[%clk 0:00:23.1]} 29... cxb4 {[%clk 0:00:21.3]} 30. Bxb4
{[%clk 0:00:24]} 30... Rc6 {[%clk 0:00:16]} 31. Re8 {[%clk 0:00:23.2]} 31...
Bd4+ {[%clk 0:00:15.4]} 32. Bc3 {[%clk 0:00:23.7]} 32... Bc5 {[%clk 0:00:14.8]}
33. Rb8+ {[%clk 0:00:21.5]} 33... Rb6 {[%clk 0:00:15]} 34. Rxb6+ {[%clk
0:00:21.2]} 34... Kxb6 {[%clk 0:00:11.7]} 35. Bxf6 {[%clk 0:00:21.5]} 35... Be3
{[%clk 0:00:12.2]} 36. Kc3 {[%clk 0:00:18]} 36... Kb5 {[%clk 0:00:12.5]} 37. Be7
{[%clk 0:00:17.4]} 37... Bc1 {[%clk 0:00:11.9]} 38. g3 {[%clk 0:00:13.6]} 38...
hxg3 {[%clk 0:00:11.9]} 39. hxg3 {[%clk 0:00:14.5]} 39... Be3 {[%clk 0:00:11.8]}
40. Bd6 {[%clk 0:00:13.8]} 40... Bf2 {[%clk 0:00:09.3]} 41. Kd2 {[%clk
0:00:11.9]} 41... Bd4 {[%clk 0:00:08.8]} 42. Be7 {[%clk 0:00:09.5]} 42... Bf2
{[%clk 0:00:06.8]} 43. g4 {[%clk 0:00:09.9]} 43... Kc6 {[%clk 0:00:03.9]} 44.
Bxg5 {[%clk 0:00:09.1]} 44... Bc5 {[%clk 0:00:04.1]} 45. Kc3 {[%clk 0:00:08.8]}
45... Kd5 {[%clk 0:00:04.4]} 46. Kb2 {[%clk 0:00:06.3]} 46... Kd4 {[%clk
0:00:03.4]} 47. Bf6+ {[%clk 0:00:05.9]} 47... Ke3 {[%clk 0:00:03.4]} 48. g5
{[%clk 0:00:05.5]} 1-0